bitfinex-derivatives/quotes_ETHF0:USTF0_20250730
["timestamp","ask_amount","ask_price","bid_price","bid_amount"]
[1753878203906,0.66937257,3777.6,3777.5,3.6601]
[1753878204099,23.523,3777.6,3777.5,3.6601]
[1753878204305,0.52946,3777.7,3777.6,3.6601]
[1753878204495,24.01346,3777.7,3777.6,3.6601]
[1753878204897,25.32206,3777.7,3777.6,2.3838]
[1753878205104,0.52956,3776.9,3776.8,1.5123]
[1753878205407,23.467,3776.9,3776.8,3.6601]
[1753878206301,23.467,3776.9,3776.8,2.3838]
[1753878206496,0.52962,3776.5,3776.4,3.6601]
[1753878206702,23.94662,3776.5,3776.4,2.3838]
[1753878206906,25.25522,3776.5,3776.4,2.3838]
[1753878207408,0.52969,3776.0,3775.4,3.2078]
[1753878207602,1.3096,3775.1,3775.0,2.35949344]
[1753878207801,24.6956,3775.1,3775.0,0.8715]
[1753878208004,24.6956,3775.1,3775.0,2.3838]
[1753878208299,24.6946,3775.1,3775.0,2.3838]
[1753878208503,24.6956,3775.1,3775.0,0.8715]
[1753878208701,24.6956,3775.1,3775.0,2.3838]
[1753878208901,0.52988,3774.6,3774.5,1.5123]
[1753878209103,0.52992,3774.4,3774.3,2.7886]
[1753878209307,0.5299,3774.5,3774.2,0.01854673]
[1753878209504,0.5299,3774.5,3774.4,6.01959344]
[1753878209705,0.5299,3774.5,3774.4,3.6601]
[1753878210109,40.8,3774.6,3774.5,2.7886]
[1753878210300,41.32988,3774.6,3774.5,6.8679]
[1753878210611,0.52988,3774.6,3774.5,6.8679]
[1753878210812,0.52988,3774.6,3774.5,3.6601]
[1753878211010,0.52988,3774.6,3774.5,6.8679]
[1753878211304,0.001,3775.4,3774.5,6.8679]
[1753878211305,40.8,3775.1,3774.7,0.8715]
[1753878211612,0.52981,3775.2,3775.1,3.6601]
[1753878211903,0.52987,3774.7,3774.6,5.5916]
[1753878212104,0.52987,3774.7,3774.6,2.3838]
[1753878212500,25.08047,3774.7,3774.6,0.8715]
[1753878212705,1.83853,3774.3,3774.2,2.40234673]
[1753878213001,25.05653,3774.3,3774.2,0.89004673]
[1753878213206,23.74793,3774.3,3774.2,2.40234673]
[1753878213504,23.74793,3774.3,3774.2,3.67864673]
[1753878214109,25.05653,3774.3,3774.2,2.40234673]
[1753878214308,4.5164,3774.8,3774.2,3.67864673]
[1753878214509,23.68587,3774.7,3774.5,2.7886]
[1753878214711,24.99447,3774.7,3774.6,2.3838]
[1753878214904,0.52993,3774.3,3774.2,3.67864673]
[1753878215108,23.67393,3774.3,3774.2,3.67864673]
[1753878215516,24.98253,3774.3,3774.2,2.40234673]
[1753878216714,23.67393,3774.3,3774.2,2.40234673]
[1753878217010,23.67393,3774.3,3774.2,3.67864673]
[1753878217208,23.63493,3774.3,3774.2,3.67864673]
[1753878217907,24.94353,3774.3,3774.2,3.67864673]
[1753878218306,1.83853,3774.3,3774.2,3.67864673]
[1753878218507,24.86253,3774.3,3774.2,3.67864673]
[1753878218807,0.001,3774.7,3774.2,0.89004673]
[1753878218808,1.3096,3774.7,3774.2,0.89004673]
[1753878219007,0.52988,3774.6,3774.5,3.6601]
[1753878219202,0.52988,3774.6,3774.2,0.01854673]
[1753878219203,0.52985,3774.9,3774.4,0.5299]
[1753878219407,22.988,3774.8,3774.5,0.8715]
[1753878219713,22.988,3774.8,3774.3,0.52992]
[1753878220013,22.98,3774.7,3774.6,3.6601]
[1753878220205,41.32985,3774.9,3774.6,3.6601]
[1753878220410,23.49881,3775.2,3774.8,4.18995]
[1753878220712,23.49881,3775.2,3774.5,3.2078]
[1753878220713,0.52975,3775.6,3775.3,2.7886]
[1753878220903,0.5298,3775.3,3775.2,2.3838]
[1753878221307,0.5298,3775.3,3775.2,3.6601]
[1753878221711,1.8384,3775.3,3775.2,3.6601]
[1753878222313,1.83843,3775.0,3774.9,2.3838]
[1753878222515,0.5299,3774.5,3774.4,2.7886]
[1753878222710,1.8395,3774.5,3774.4,0.8715]
[1753878223308,24.7325,3774.5,3774.4,0.8715]
[1753878223510,24.7325,3774.5,3774.2,0.89004673]
[1753878223511,1.83953,3774.3,3774.2,0.89004673]
[1753878223907,0.52993,3774.3,3774.2,0.89004673]
[1753878224106,1.83853,3774.4,3774.3,2.3838]
[1753878224310,0.52993,3774.4,3774.2,0.01854673]
[1753878224508,1.8394,3774.3,3774.2,0.01854673]
[1753878224813,0.5298,3774.0,3773.8,0.19608622]
[1753878225108,65.48058,3773.9,3773.8,0.19608622]
[1753878225615,66.01088,3773.9,3773.8,0.19608622]
[1753878225812,65.98408,3773.9,3773.8,0.19608622]
[1753878226714,65.43658,3773.9,3773.8,2.57988622]
[1753878227013,63.598,3773.9,3773.8,7.06398622]
[1753878228011,63.569,3773.9,3773.8,7.06398622]
[1753878229006,64.8788,3773.9,3773.8,5.78768622]
[1753878229318,65.4091,3773.9,3773.8,0.19608622]
[1753878229814,63.492,3773.9,3773.8,3.85618622]
[1753878230112,64.8006,3773.9,3773.8,0.19608622]
[1753878230310,64.8018,3773.9,3773.8,0.19608622]
[1753878230516,64.8006,3773.9,3773.8,2.57988622]
[1753878231219,63.475,3773.9,3773.8,3.85618622]
[1753878231516,63.431,3773.9,3773.8,3.85618622]
[1753878231912,63.431,3773.9,3773.8,7.06398622]
[1753878232508,0.52995,3774.2,3773.8,3.40388622]
[1753878232811,22.627,3774.1,3774.0,3.6563]
[1753878233011,38.162,3775.3,3774.6,0.8805]
[1753878233215,0.52985,3774.9,3774.8,6.8641]
[1753878233515,63.91285,3774.9,3774.8,6.8641]
[1753878234414,22.574,3774.9,3774.8,6.8641]
[1753878234714,22.541,3775.2,3774.9,4.18614]
[1753878235010,24.41941,3775.2,3775.1,2.3384]
[1753878235211,24.42061,3775.2,3775.1,0.8805]
[1753878235511,24.42061,3775.2,3775.1,3.6563]
[1753878235512,23.05381,3775.2,3775.1,3.6563]
[1753878235718,23.04181,3775.2,3775.1,3.6563]
[1753878236216,4.53336,3775.7,3775.1,3.6563]
[1753878236217,3.2078,3775.7,3775.1,3.6563]
[1753878236514,3.2078,3775.7,3774.8,3.2078]
[1753878236515,0.27329,3775.8,3775.7,3.6563]
[1753878236912,0.803,3775.8,3775.7,3.6563]
[1753878237112,2.6826,3775.8,3775.7,2.3384]
[1753878238913,22.76229,3775.8,3775.7,3.6563]
[1753878239315,24.64189,3775.8,3775.7,0.8805]
[1753878239521,24.11089,3775.8,3775.7,2.3384]
[1753878239718,24.11089,3775.8,3775.7,3.6563]
[1753878239921,22.75229,3775.8,3775.7,3.6563]
[1753878240114,0.27329,3775.8,3775.7,3.6563]
[1753878241326,2.15289,3775.8,3775.7,2.3384]
[1753878241512,2.15289,3775.8,3775.7,0.8805]
[1753878241822,2.15289,3775.8,3775.7,2.3384]
[1753878242120,2.15289,3775.8,3775.7,0.8805]
[1753878242314,2.15289,3775.8,3775.7,2.3384]
[1753878242718,0.27329,3775.8,3775.7,3.6563]
[1753878243626,2.15289,3775.8,3775.7,0.8805]
[1753878244519,2.40933,3775.7,3775.5,3.2078]
[1753878244723,2.40933,3775.7,3775.1,0.8805]
[1753878244724,2.4094,3775.2,3775.1,0.8805]
[1753878244911,24.1896,3775.2,3774.6,3.6563]
[1753878245217,24.1896,3775.2,3774.1,5.69478947]
[1753878245218,1.87851,3774.4,3774.3,0.8805]
[1753878245419,2.40951,3774.4,3774.3,0.8805]
[1753878245614,1.87851,3774.4,3774.3,2.3384]
[1753878245819,22.8309,3774.5,3774.3,2.7758]
[1753878246019,22.8309,3774.5,3774.4,0.8805]
[1753878246223,22.8309,3774.5,3774.4,3.6563]
[1753878246517,24.1795,3774.5,3774.4,0.8805]
[1753878246722,24.1795,3774.5,3774.1,3.2078]
[1753878246723,1.87854,3774.2,3774.1,4.0883]
[1753878246919,2.40954,3774.2,3774.1,4.0883]
[1753878247316,2.40954,3774.2,3774.1,3.2078]
[1753878247521,1.8796,3774.2,3773.9,1.4579]
[1753878247726,2.40957,3774.0,3773.9,0.8805]
[1753878248425,2.40957,3774.0,3773.9,2.3384]
[1753878248630,1.87857,3774.0,3773.9,2.3384]
[1753878248924,22.77296,3774.1,3774.0,2.3384]
[1753878249120,22.191,3774.2,3774.1,2.3384]
[1753878249319,22.191,3774.2,3774.1,3.6563]
[1753878249624,24.06955,3774.2,3774.1,3.6563]
[1753878249821,1.8796,3775.2,3774.3,2.7758]
[1753878250019,0.52987,3774.7,3774.6,1.3179]
[1753878250620,41.32987,3774.7,3774.6,3.6563]
[1753878251015,42.1486,3774.7,3774.6,3.6563]
[1753878251923,2.67296,3775.6,3774.4,3.2078]
[1753878252128,1.62189,3775.8,3774.8,3.2078]
[1753878252420,41.32974,3775.6,3775.5,3.2078]
[1753878252622,0.27329,3775.8,3775.6,2.3384]
[1753878252923,0.80302,3775.8,3775.7,1.3179]
[1753878253128,41.07329,3775.8,3775.7,3.6563]
[1753878253624,0.27329,3775.8,3775.7,3.6563]
[1753878254726,0.80429,3775.8,3775.7,2.3384]
[1753878254918,2.15289,3775.8,3775.7,0.8805]
[1753878255124,0.27329,3775.8,3775.7,3.6563]
[1753878256821,0.27329,3775.8,3775.7,4.18603]
[1753878257524,22.54364,3776.3,3776.0,0.52968]
[1753878257724,22.014,3776.3,3776.2,7.39376]
[1753878257925,21.956,3776.7,3776.3,3.6563]
[1753878258225,21.956,3776.7,3776.6,6.8641]
[1753878258930,0.52955,3777.0,3776.7,4.18589]
[1753878259128,0.018,3777.3,3776.6,3.2078]
[1753878259322,0.52952,3777.2,3777.0,3.2078]
[1753878259723,0.52952,3777.2,3777.1,2.1984]
[1753878260024,2.40912,3777.2,3777.1,0.8805]
[1753878260230,1.87812,3777.2,3777.1,2.3384]
[1753878261229,2.40912,3777.2,3777.1,2.3384]
[1753878261429,2.40912,3777.2,3777.1,0.8805]
[1753878261725,0.52952,3777.2,3777.1,2.4374]
[1753878261929,41.34751,3777.3,3777.2,3.7836]
[1753878262626,40.818,3777.3,3777.2,3.7836]
[1753878263319,42.1703,3777.3,3777.2,2.434]
[1753878263830,42.1703,3777.3,3777.2,3.7836]
[1753878264726,42.6989,3777.3,3776.9,1.5569]
[1753878265029,1.8809,3777.1,3777.0,0.8771]
[1753878265627,1.8809,3777.1,3777.0,6.9914]
[1753878265826,1.3523,3777.1,3777.0,6.9914]
[1753878266130,0.018,3777.3,3777.2,3.7836]
[1753878266331,1.8989,3777.3,3777.2,0.8771]
[1753878266525,0.52952,3777.2,3777.0,3.2078]
[1753878266831,22.30751,3777.3,3777.1,3.7836]
[1753878267022,23.65981,3777.3,3777.2,2.434]
[1753878267424,24.18841,3777.3,3777.2,2.434]
[1753878267627,24.18841,3777.3,3777.2,0.8771]
[1753878268828,23.65981,3777.3,3777.2,3.7836]
[1753878269530,22.30751,3777.3,3777.2,3.7836]
[1753878269832,21.726,3777.3,3777.2,3.7836]
[1753878270528,23.0783,3777.3,3777.2,3.7836]
[1753878270929,21.726,3777.3,3777.2,3.7836]
[1753878271427,23.6069,3777.3,3777.2,2.434]
[1753878271626,23.6069,3777.3,3777.2,0.8771]
[1753878271831,24.1357,3777.3,3777.2,0.8771]
[1753878272433,2.93922,3777.2,3777.0,3.2078]
[1753878272735,23.5069,3777.1,3777.0,4.0849]
[1753878273032,23.5069,3777.1,3777.0,5.6418]
[1753878273428,22.9783,3777.1,3777.0,3.2078]
[1753878273736,2.41049,3776.7,3776.6,4.0849]
[1753878273934,23.97749,3776.7,3776.6,3.2078]
[1753878274135,65.30629,3776.7,3776.6,3.2078]
[1753878274334,65.30629,3776.7,3776.6,4.0849]
[1753878274524,2.41053,3776.4,3776.2,4.0849]
[1753878274729,23.4439,3776.3,3776.2,4.0849]
[1753878275628,23.4439,3776.3,3776.2,3.2078]
[1753878275832,23.4439,3776.3,3776.2,4.0849]
[1753878276133,23.4439,3776.3,3775.9,0.8771]
[1753878276134,0.52967,3776.1,3775.9,0.8771]
[1753878276332,23.4129,3776.0,3775.9,0.8771]
[1753878276534,23.4129,3776.0,3775.9,2.434]
[1753878276734,23.4129,3776.0,3775.9,0.8771]
[1753878276938,2.4106,3775.9,3775.8,3.2078]
[1753878277130,2.4106,3775.9,3775.8,4.0849]
[1753878277533,2.4106,3775.9,3775.8,3.2078]
[1753878277727,2.4106,3775.9,3775.8,4.0849]
[1753878278132,2.4106,3775.9,3775.8,3.2078]
[1753878278433,2.93947,3775.4,3775.3,4.0849]
[1753878278732,65.19047,3775.4,3775.3,3.2078]
[1753878279037,64.13307,3775.4,3775.3,6.9914]
[1753878279229,62.244,3775.4,3775.3,6.9914]
[1753878280227,0.52977,3775.5,3775.3,6.9914]
[1753878280432,21.434,3775.4,3775.3,3.2078]
[1753878280637,0.52971,3775.9,3775.5,0.52975]
[1753878280836,0.52967,3776.1,3775.8,3.2078]
[1753878281032,0.52967,3776.1,3775.9,3.7836]
[1753878281237,21.396,3776.0,3775.9,3.7836]
[1753878282537,22.7483,3776.0,3775.9,3.7836]
[1753878282934,0.52967,3776.1,3775.9,3.7836]
[1753878283141,0.5297,3775.9,3775.8,3.2078]
[1753878283640,0.5297,3775.9,3775.2,5.6418]
[1753878283641,1.88208,3775.3,3775.2,5.6418]
[1753878283845,1.88214,3774.9,3774.8,4.0849]
[1753878284028,1.3523,3775.5,3774.8,6.9914]
[1753878284335,1.88201,3775.9,3775.5,0.52974]
[1753878284533,2.41057,3776.2,3775.9,3.7836]
[1753878284733,21.86368,3776.1,3775.8,3.7836]
[1753878284939,1.8809,3776.6,3776.0,3.7836]
[1753878285140,0.52965,3776.3,3776.2,2.9065]
[1753878285339,0.52965,3776.3,3776.2,3.7836]
[1753878285540,21.86362,3776.5,3776.2,0.52966]
[1753878285836,23.74452,3776.5,3776.4,2.434]
[1753878286040,23.74452,3776.5,3776.4,0.8771]
[1753878286340,23.21592,3776.5,3776.4,3.7836]
[1753878287136,23.74452,3776.5,3776.4,2.434]
[1753878287337,23.74452,3776.5,3776.4,0.8771]
[1753878287530,0.52966,3776.2,3776.1,3.2078]
[1753878287731,21.277,3776.2,3776.1,5.4345]
[1753878287936,40.8,3776.6,3776.1,3.2078]
[1753878288236,21.271,3776.5,3776.3,4.31323]
[1753878288549,40.8,3776.6,3776.5,3.7836]
[1753878288743,62.053,3776.6,3776.5,3.7836]
[1753878288938,0.52953,3777.1,3776.5,3.7836]
[1753878289243,0.018,3777.3,3776.1,1.32417]
[1753878289244,21.247,3777.0,3776.9,6.9914]
[1753878289842,23.1279,3777.0,3776.9,5.6418]
[1753878290241,22.5993,3777.0,3776.9,5.6418]
[1753878290441,79.46552,3777.2,3777.0,3.7836]
[1753878290636,21.212,3777.1,3777.0,3.7836]
[1753878290836,22.5643,3777.1,3777.0,6.9914]
[1753878291236,23.0929,3777.1,3777.0,5.6418]
[1753878291844,22.5643,3777.1,3777.0,6.97]
[1753878292640,21.212,3777.1,3777.0,6.97]
[1753878292838,0.018,3777.3,3777.1,0.52953]
[1753878293037,0.018,3777.3,3777.2,3.7162]
[1753878293243,21.169,3777.3,3777.2,3.7162]
[1753878293640,0.018,3777.3,3777.2,3.7162]
[1753878294343,0.018,3777.3,3777.2,4.24572]
[1753878295239,0.018,3777.3,3777.2,3.7162]
[1753878295642,21.105,3777.6,3777.3,3.7162]
[1753878295944,21.105,3777.6,3777.5,6.924]
[1753878296239,22.92936,3777.6,3777.5,6.924]
[1753878296440,23.45876,3777.6,3777.5,6.924]
[1753878296843,23.44876,3777.6,3777.5,6.924]
[1753878298243,23.44876,3777.6,3777.5,5.5958]
[1753878298436,40.8,3777.8,3777.6,3.7162]
[1753878298641,21.036,3777.7,3777.6,1.3282]
[1753878298842,21.036,3777.7,3777.6,2.7959]
[1753878299342,21.036,3777.7,3777.6,3.7162]
[1753878299542,21.021,3777.7,3777.6,1.3282]
[1753878299741,21.021,3777.7,3777.6,3.7162]
[1753878300237,22.8453,3777.7,3777.6,0.9203]
[1753878300646,0.2,3777.9,3777.8,3.7162]
[1753878300942,0.5294,3778.6,3777.8,3.7162]
[1753878300943,20.994,3778.7,3778.1,0.9203]
[1753878301144,40.8,3778.6,3778.2,3.2078]
[1753878301348,1.82424,3778.5,3778.4,2.388]
[1753878301536,1.2949,3779.3,3778.2,3.2078]
[1753878301847,1.85243,3779.4,3779.1,3.7162]
[1753878301848,21.72528866,3779.2,3779.1,3.7162]
[1753878302042,62.34425,3779.2,3779.1,3.7162]
[1753878302247,21.011,3779.2,3779.1,2.388]
[1753878302545,2.00553067,3779.2,3779.1,3.7162]
[1753878302736,21.18223067,3779.2,3779.1,2.7959]
[1753878302941,21.01,3779.2,3779.1,3.7162]
[1753878303139,0.01282,3779.5,3779.3,0.52921]
[1753878303449,21.01082,3779.5,3779.4,6.924]
[1753878303751,0.01282,3779.5,3779.4,6.924]
[1753878304442,22.81112,3779.5,3779.4,0.9203]
[1753878304646,22.28172,3779.5,3779.4,2.388]
[1753878304851,0.01282,3779.5,3779.4,3.7162]
[1753878305042,1.30772,3779.5,3779.4,3.7162]
[1753878305238,0.01282,3779.5,3779.4,3.7162]
[1753878305550,0.01282,3779.5,3779.4,4.24541]
[1753878305747,0.01282,3779.5,3779.4,3.7162]
[1753878306350,0.01282,3779.5,3779.4,8.7162]
[1753878306544,0.01282,3779.5,3779.4,3.7162]
[1753878310847,0.2,3779.9,3779.4,3.7162]
[1753878311152,1.82408,3779.7,3779.6,3.7162]
[1753878311450,2.36628,3779.7,3779.6,2.388]
[1753878311754,0.52918,3779.7,3779.6,2.7959]
[1753878312052,0.52916,3779.8,3779.7,3.7162]
[1753878313251,0.72915,3779.9,3779.7,3.7162]
[1753878313451,2.02405,3779.9,3779.8,6.924]
[1753878313748,0.2,3779.9,3779.8,6.924]
[1753878315349,0.72914,3779.9,3779.8,6.924]
[1753878315554,0.2,3779.9,3779.8,6.924]
[1753878316848,0.2,3779.9,3779.8,9.4743]
[1753878317049,0.52903,3780.7,3780.6,1.6461]
[1753878317259,0.52902,3780.8,3780.6,3.07933]
[1753878317450,0.52899,3781.0,3780.8,3.07931]
[1753878317645,42.12235,3781.4,3780.9,4.6755]
[1753878317646,1.2949,3781.4,3780.9,4.6755]
[1753878317857,1.2949,3781.4,3781.3,3.2078]
[1753878318047,2.75353,3781.4,3781.3,3.2078]
[1753878318248,44.35913,3781.4,3781.3,4.6755]
[1753878318448,0.52897,3781.1,3781.0,0.9203]
[1753878318653,0.52903,3780.7,3780.6,2.388]
[1753878318854,2.2246,3781.0,3780.7,1.3282]
[1753878319057,1.82385,3781.3,3781.0,4.24517]
[1753878319258,1.82385,3781.3,3781.2,3.2078]
[1753878319451,1.7353,3781.3,3780.8,1.4677]
[1753878319750,23.37497,3782.2,3781.3,3.7162]
[1753878319950,0.72886,3781.9,3781.4,1.99662]
[1753878320152,1.0048,3781.9,3781.6,3.2078]
[1753878320358,1.7345,3781.8,3781.7,2.388]
[1753878320557,2.46337,3781.9,3781.8,1.4677]
[1753878320855,3.75827,3781.9,3781.8,1.4677]
[1753878321062,2.02377,3781.9,3781.8,3.7162]
[1753878321360,3.75827,3781.9,3781.8,3.7162]
[1753878321553,2.82857,3781.9,3781.8,2.7959]
[1753878321749,0.72887,3781.9,3781.8,3.6779]
[1753878322064,0.72887,3781.9,3781.8,1.4677]
[1753878322254,3.74197,3781.9,3781.8,1.4677]
[1753878322755,1.3202,3781.6,3781.5,1.4422]
[1753878323062,3.0131,3781.6,3781.5,1.4422]
[1753878323353,2.2096,3781.6,3781.5,1.4422]
[1753878323560,1.3202,3781.6,3781.5,3.6424]
[1753878324266,0.52894,3781.3,3781.2,3.2078]
[1753878324465,0.52894,3781.3,3780.8,2.2002]
[1753878324466,3.0131,3780.9,3780.8,3.2078]
[1753878324963,0.52898,3781.0,3780.9,1.3182]
[1753878324964,0.52899,3781.0,3780.9,1.3182]
[1753878325261,1.32234,3781.4,3780.8,3.2078]
[1753878325464,3.5421,3780.9,3780.8,6.8502]
[1753878325660,3.5421,3780.9,3780.8,3.2078]
[1753878325864,3.5421,3780.9,3780.8,4.65]
[1753878326064,1.32255,3780.8,3780.4,3.2078]
[1753878326264,21.4845,3781.1,3780.5,0.882]
[1753878326469,0.52898,3781.0,3780.8,3.2078]
[1753878326669,1.3202,3780.9,3780.8,5.532]
[1753878326967,1.3202,3780.9,3780.8,6.8502]
[1753878327864,0.00588811,3781.6,3781.0,1.4422]
[1753878328060,0.52891,3781.5,3781.4,3.6424]
[1753878328264,0.00588811,3781.6,3781.4,4.17132]
[1753878328465,0.00588811,3781.6,3781.5,3.6424]
[1753878329064,0.00588811,3781.6,3781.5,1.4422]
[1753878329259,1.32608811,3781.6,3781.5,2.3242]
[1753878329462,0.00588811,3781.6,3781.5,3.6424]
[1753878330371,0.2,3781.9,3781.3,3.2078]
[1753878330568,0.2,3781.9,3781.8,6.8502]
[1753878331064,0.2,3781.9,3781.8,4.65]
[1753878331268,0.2,3781.9,3781.8,6.8502]
[1753878331662,0.5288,3782.4,3782.0,3.6424]
[1753878331862,1.849,3782.4,3782.3,6.8502]
[1753878332568,3.54784,3782.0,3781.9,5.532]
[1753878332972,3.54784,3782.0,3781.9,4.65]
[1753878333161,3.019,3782.0,3781.9,5.532]
[1753878333365,3.019,3782.0,3781.9,6.8502]
[1753878333561,1.84908,3781.8,3781.7,3.6424]
[1753878333762,2.73848,3781.8,3781.7,3.6424]
[1753878334062,2.13146,3782.2,3781.5,3.2078]
[1753878334063,3.5479,3781.6,3781.5,4.65]
[1753878334569,0.52894,3781.3,3781.2,3.6424]
[1753878334765,3.54794,3781.3,3781.2,1.4422]
[1753878334968,3.019,3781.2,3781.1,3.2078]
[1753878335160,3.54801,3780.8,3780.7,3.2078]
[1753878335568,3.54801,3780.8,3780.7,4.65]
[1753878335969,0.52905,3780.5,3780.4,2.3242]
[1753878336165,3.019,3780.4,3780.3,3.2078]
[1753878337061,3.019,3779.9,3779.8,3.40357496]
[1753878337461,3.019,3779.9,3779.8,0.19577496]
[1753878338572,1.32289,3779.8,3779.3,2.35949344]
[1753878338768,3.019,3779.1,3779.0,3.2078]
[1753878339975,0.52932,3778.6,3778.5,0.882]
[1753878340274,3.019,3778.8,3778.6,2.3242]
[1753878340473,1.3202,3778.7,3778.6,2.3242]
[1753878341173,40.8,3779.1,3778.9,1.3182]
[1753878341370,0.52921,3779.4,3779.1,1.3182]
[1753878341569,1.84945,3779.2,3779.1,1.4422]
[1753878341773,1.84945,3779.2,3779.1,3.6424]
[1753878341774,40.8,3779.2,3779.1,3.6424]
[1753878342270,20.479,3779.5,3779.2,3.6424]
[1753878342469,1.3202,3779.7,3779.4,6.8502]
[1753878342677,0.52908,3780.3,3779.9,2.2002]
[1753878342974,3.019,3780.4,3780.1,2.2002]
[1753878343177,1.84928,3780.3,3780.2,1.4422]
[1753878343370,1.84928,3780.3,3780.2,2.3242]
[1753878343573,0.52911,3780.1,3780.0,5.532]
[1753878343772,0.5291,3780.2,3780.0,3.2078]
[1753878343977,0.52907,3780.4,3780.0,3.2078]
[1753878344183,0.52907,3780.4,3780.3,3.6424]
[1753878344685,3.54807,3780.4,3780.3,1.4422]
[1753878344876,0.52911,3780.1,3780.0,6.8502]
[1753878345076,3.019,3780.4,3780.0,6.8502]
[1753878345077,0.5291,3780.2,3780.0,6.8502]
[1753878345277,0.52909,3780.3,3780.1,3.6424]
[1753878345778,1.84927,3780.4,3780.3,3.6424]
[1753878346287,0.52907,3780.4,3780.3,3.6424]
[1753878346679,20.97205,3780.5,3780.3,3.6424]
[1753878346880,0.52908,3780.4,3780.1,3.6424]
[1753878347189,0.52908,3780.4,3780.3,2.2002]
[1753878347387,1.84928,3780.4,3780.3,3.6424]
[1753878347887,0.52908,3780.4,3780.3,3.6424]
[1753878348285,1.84928,3780.4,3780.0,3.2078]
[1753878348586,3.54811,3780.1,3780.0,4.65]
[1753878348789,3.54811,3780.1,3780.0,3.2078]
[1753878349184,3.019,3780.1,3780.0,4.65]
[1753878349379,3.019,3780.1,3780.0,3.2078]
[1753878349899,64.183,3780.1,3780.0,3.2078]
[1753878350885,3.54818,3779.6,3779.5,3.2078]
[1753878351086,23.89018,3779.6,3779.5,3.2078]
[1753878351693,0.52924,3779.2,3779.1,3.2078]
[1753878351899,2.9283,3779.2,3779.1,3.2078]
[1753878352488,0.5292,3779.5,3779.2,0.52923]
[1753878352699,2.9283,3779.3,3779.2,0.52923]
[1753878353095,2.9283,3779.3,3779.2,1.94183]
[1753878353802,2.9283,3779.3,3779.1,3.73704]
[1753878354000,2.9283,3779.2,3779.1,3.73704]
[1753878354199,2.9283,3779.2,3779.1,3.2078]
[1753878354406,3.45755,3779.1,3778.7,3.73709]
[1753878354696,2.9283,3778.9,3778.7,3.2078]
[1753878354898,43.7283,3778.8,3778.7,3.2078]
[1753878355605,42.0476,3778.8,3778.7,6.847]
[1753878355898,42.0476,3778.8,3778.7,5.5475]
[1753878356107,42.0476,3778.8,3778.7,6.847]
[1753878357998,43.7283,3778.8,3778.7,6.847]
[1753878358198,43.7283,3778.8,3778.7,5.5475]
[1753878358806,43.7283,3778.8,3778.7,6.0768]
[1753878359004,40.8,3778.8,3778.7,7.3763]
[1753878360207,0.52923,3779.3,3779.2,3.6392]
[1753878360401,2.1189,3779.5,3779.2,3.6392]
[1753878360599,61.66221,3779.4,3779.3,3.6392]
[1753878361000,62.3806,3779.4,3779.3,3.6392]
[1753878361600,0.52922,3779.3,3779.1,3.2078]
[1753878361904,0.8069,3779.7,3779.3,3.6392]
[1753878362108,1.2476,3779.7,3779.6,3.6392]
[1753878362496,0.5291,3780.2,3779.8,2.7121]
[1753878362702,20.333,3780.1,3780.0,0.52912]
[1753878362908,20.333,3780.1,3780.0,7.37611]
[1753878363108,20.333,3780.1,3780.0,6.847]
[1753878363298,21.65579,3780.1,3779.5,3.2078]
[1753878363607,1.2476,3780.0,3779.8,3.6392]
[1753878363808,43.7258,3780.3,3780.0,3.6392]
[1753878364008,20.331,3780.2,3780.1,0.9271]
[1753878364405,42.9189,3780.3,3780.1,0.9271]
[1753878364605,40.8,3780.3,3780.2,3.6392]
[1753878364909,61.131,3780.3,3780.2,3.6392]
[1753878366503,40.8,3780.3,3780.2,3.6392]
[1753878366704,61.13,3780.3,3780.2,3.6392]
[1753878367002,40.8,3780.3,3780.2,3.6392]
[1753878367202,38.091,3781.0,3780.4,4.16827]
[1753878367409,21.5756,3780.9,3780.6,3.6392]
[1753878367712,38.61999,3781.0,3780.8,2.2266]
[1753878367907,0.52902,3780.8,3780.6,0.52903]
[1753878368106,0.52899,3781.0,3780.8,1.4126]
[1753878368310,0.52897,3781.1,3780.8,1.4126]
[1753878368507,0.52897,3781.1,3780.7,3.2078]
[1753878368707,0.52897,3781.1,3781.0,3.6392]
[1753878368901,4.52983,3782.3,3781.2,1.4126]
[1753878369205,0.52885,3782.0,3781.8,6.847]
[1753878369609,0.52885,3782.0,3781.8,7.37587]
[1753878370111,0.52885,3782.0,3781.8,6.847]
[1753878370411,20.324,3782.1,3781.8,6.847]
[1753878370606,40.8,3782.3,3781.8,6.847]
[1753878370803,61.123,3782.3,3782.2,6.847]
[1753878371203,62.3706,3782.3,3782.2,6.847]
[1753878371404,61.123,3782.3,3782.2,6.847]
[1753878371604,21.5706,3782.3,3782.2,6.847]
[1753878372307,23.4488,3782.3,3782.2,5.5475]
[1753878372606,23.4488,3782.3,3781.2,2.35949344]
[1753878372607,1.32211,3782.0,3781.4,3.2078]
[1753878372806,2.64781,3781.5,3781.4,3.2078]
[1753878373013,1.77651,3781.5,3781.4,6.847]
[1753878373203,3.65471,3781.5,3781.4,5.5475]
[1753878373406,3.65471,3781.5,3780.6,0.52903]
[1753878373407,2.40713,3781.4,3781.0,3.2078]